[Event "November 21 Early 2023"]
[Site "https://www.chess.com"]
[Date "2023.11.21"]
[Round "11"]
[White "Kanyamarala, Trisha"]
[Black "Demin, Vladimir"]
[Result "0-1"]
[Board "76"]
[TimeControl "180+1"]
[WhiteFideId "45004722"]
[BlackFideId "4167457"]
[WhiteElo "2078"]
[BlackElo "2582"]
[WhiteTeam "IRL"]
[BlackTeam "RUS"]
[WhiteClock "0:00:03"]
[BlackClock "0:00:32"]

1. c4 {[%clk 0:02:55]}  Nf6 {[%clk 0:02:57]} 2. Nc3 {[%clk 0:02:54]}  e6 {[%clk 0:02:56]} 3. e4 {[%clk 0:02:53]}  d5 {[%clk 0:02:54]} 4. e5 {[%clk 0:02:53]}  Nfd7 {[%clk 0:02:52]} 5. Nf3 {[%clk 0:02:33]}  d4 {[%clk 0:02:37]} 6. Nxd4 {[%clk 0:02:33]}  Nxe5 {[%clk 0:02:37]} 7. Nf3 {[%clk 0:02:31]}  Nd3+ {[%clk 0:02:37]} 8. Bxd3 {[%clk 0:02:29]}  Qxd3 {[%clk 0:02:38]} 9. Qe2 {[%clk 0:02:30]}  Qxe2+ {[%clk 0:02:37]} 10. Kxe2 {[%clk 0:02:30]}  a6 {[%clk 0:02:35]} 11. d4 {[%clk 0:02:30]}  Nc6 {[%clk 0:02:33]} 12. Bf4 {[%clk 0:02:29]}  Bd6 {[%clk 0:02:32]} 13. Bxd6 {[%clk 0:02:28]}  cxd6 {[%clk 0:02:33]} 14. Ne4 {[%clk 0:02:28]}  Ke7 {[%clk 0:02:33]} 15. c5 {[%clk 0:02:28]}  d5 {[%clk 0:02:30]} 16. Nd6 {[%clk 0:02:27]}  Rb8 {[%clk 0:02:28]} 17. a3 {[%clk 0:02:25]}  b6 {[%clk 0:02:27]} 18. b4 {[%clk 0:02:22]}  bxc5 {[%clk 0:02:23]} 19. dxc5 {[%clk 0:02:20]}  e5 {[%clk 0:02:21]} 20. Kd2 {[%clk 0:02:17]}  f6 {[%clk 0:02:19]} 21. Rhe1 {[%clk 0:02:12]}  Be6 {[%clk 0:02:19]} 22. Rab1 {[%clk 0:02:08]}  d4 {[%clk 0:02:17]} 23. Kd3 {[%clk 0:02:04]}  g5 {[%clk 0:02:11]} 24. Nd2 {[%clk 0:02:03]}  f5 {[%clk 0:02:09]} 25. f3 {[%clk 0:01:57]}  Kf6 {[%clk 0:02:09]} 26. N2c4 {[%clk 0:01:56]}  h5 {[%clk 0:02:04]} 27. Rb2 {[%clk 0:01:43]}  Bxc4+ {[%clk 0:01:44]} 28. Kxc4 {[%clk 0:01:41]}  Rh7 {[%clk 0:01:44]} 29. a4 {[%clk 0:01:39]}  a5 {[%clk 0:01:24]} 30. b5 {[%clk 0:01:37]}  Nb4 {[%clk 0:01:24]} 31. Rbe2 {[%clk 0:01:34]}  Re7 {[%clk 0:01:21]} 32. c6 {[%clk 0:01:26]}  d3 {[%clk 0:01:15]} 33. Rd2 {[%clk 0:01:26]}  Rd8 {[%clk 0:01:12]} 34. Kc5 {[%clk 0:01:21]}  e4 {[%clk 0:01:08]} 35. fxe4 {[%clk 0:01:20]}  Re5+ {[%clk 0:01:08]} 36. Kc4 {[%clk 0:01:08]}  Rxd6 {[%clk 0:01:08]} 37. c7 {[%clk 0:01:08]}  Re8 {[%clk 0:01:04]} 38. e5+ {[%clk 0:01:07]}  Rxe5 {[%clk 0:01:02]} 39. Rxe5 {[%clk 0:01:04]}  Kxe5 {[%clk 0:01:03]} 40. c8=Q {[%clk 0:01:03]}  Rd4+ {[%clk 0:01:02]} 41. Kb3 {[%clk 0:01:00]}  Nd5 {[%clk 0:01:01]} 42. Qe8+ {[%clk 0:00:58]}  Kf4 {[%clk 0:01:01]} 43. Qe1 {[%clk 0:00:54]}  Rb4+ {[%clk 0:01:00]} 44. Ka3 {[%clk 0:00:55]}  Ne3 {[%clk 0:01:00]} 45. Rf2+ {[%clk 0:00:54]}  Ke4 {[%clk 0:01:00]} 46. Qc1 {[%clk 0:00:42]}  f4 {[%clk 0:00:55]} 47. Qc6+ {[%clk 0:00:41]}  Kd4 {[%clk 0:00:55]} 48. Qd6+ {[%clk 0:00:38]}  Kc4 {[%clk 0:00:55]} 49. Qe6+ {[%clk 0:00:34]}  Kc3 {[%clk 0:00:50]} 50. Qe5+ {[%clk 0:00:26]}  Rd4 {[%clk 0:00:50]} 51. Qc5+ {[%clk 0:00:09]}  Nc4+ {[%clk 0:00:47]} 52. Ka2 {[%clk 0:00:09]}  d2 {[%clk 0:00:44]} 53. Rxd2 {[%clk 0:00:07]}  Rxd2+ {[%clk 0:00:44]} 54. Kb1 {[%clk 0:00:08]}  Rd1+ {[%clk 0:00:40]} 55. Ka2 {[%clk 0:00:08]}  Rd2+ {[%clk 0:00:40]} 56. Kb1 {[%clk 0:00:08]}  Kb3 {[%clk 0:00:40]} 57. Kc1 {[%clk 0:00:04]}  Rc2+ {[%clk 0:00:35]} 58. Kd1 {[%clk 0:00:04]}  Ne3+ {[%clk 0:00:35]} 59. Qxe3+ {[%clk 0:00:03]}  fxe3 {[%clk 0:00:35]} 60. b6 {[%clk 0:00:04]}  Rd2+ {[%clk 0:00:34]} 61. Ke1 {[%clk 0:00:03]}  Kc3 {[%clk 0:00:34]} 62. b7 {[%clk 0:00:01]}  Rb2 {[%clk 0:00:35]} 63. g4 {[%clk 0:00:01]}  hxg4 {[%clk 0:00:34]} 64. h3 {[%clk 0:00:01]}  gxh3 {[%clk 0:00:33]} 65. Kf1 {[%clk 0:00:01]}  Kd3 {[%clk 0:00:33]} 66. Kg1 {[%clk 0:00:01]}  Rxb7 {[%clk 0:00:33]} 67. Kh1 {[%clk 0:00:01]}  Rb2 {[%clk 0:00:32]} 68. Kg1 {[%clk 0:00:02]}  Ke4 {[%clk 0:00:32]} 69. Kh1 {[%clk 0:00:02]}  Kf3 {[%clk 0:00:32]} 70. Kg1 {[%clk 0:00:02]}  g4 {[%clk 0:00:31]} 71. Kh1 {[%clk 0:00:02]}  Kg3 {[%clk 0:00:31]} 72. Kg1 {[%clk 0:00:03]}  Rb1# {[%clk 0:00:32]} 0-1

[Event "November 21 Early 2023"]
[Site "https://www.chess.com"]
[Date "2023.11.21"]
[Round "11"]
[White "BM223344"]
[Black "Statham_l3"]
[Result "0-1"]
[Board "77"]
[TimeControl "180+1"]
[WhiteElo "2495"]
[BlackElo "2577"]
[WhiteClock "0:00:17"]
[BlackClock "0:00:09"]

1. d4 {[%clk 0:03:00]}  a6 {[%clk 0:02:59]} 2. c4 {[%clk 0:03:01]}  e6 {[%clk 0:02:58]} 3. Nf3 {[%clk 0:03:01]}  Nf6 {[%clk 0:02:58]} 4. g3 {[%clk 0:03:01]}  d5 {[%clk 0:02:57]} 5. Bg2 {[%clk 0:03:01]}  dxc4 {[%clk 0:02:57]} 6. a4 {[%clk 0:03:02]}  Bb4+ {[%clk 0:02:53]} 7. Bd2 {[%clk 0:03:01]}  c5 {[%clk 0:02:46]} 8. Bxb4 {[%clk 0:02:58]}  cxb4 {[%clk 0:02:47]} 9. Qc2 {[%clk 0:02:56]}  Qd5 {[%clk 0:02:25]} 10. Nbd2 {[%clk 0:02:53]}  O-O {[%clk 0:01:45]} 11. Qxc4 {[%clk 0:02:51]}  Nc6 {[%clk 0:01:39]} 12. O-O {[%clk 0:02:50]}  Rd8 {[%clk 0:01:35]} 13. Rfd1 {[%clk 0:02:46]}  e5 {[%clk 0:01:17]} 14. dxe5 {[%clk 0:02:42]}  Nxe5 {[%clk 0:01:12]} 15. Nxe5 {[%clk 0:02:36]}  Qxe5 {[%clk 0:01:11]} 16. Nf3 {[%clk 0:02:35]}  Rxd1+ {[%clk 0:00:48]} 17. Rxd1 {[%clk 0:02:36]}  Qe7 {[%clk 0:00:47]} 18. Nd4 {[%clk 0:02:23]}  Rb8 {[%clk 0:00:35]} 19. e4 {[%clk 0:02:16]}  h5 {[%clk 0:00:34]} 20. Re1 {[%clk 0:02:12]}  Nd7 {[%clk 0:00:18]} 21. e5 {[%clk 0:02:07]}  b5 {[%clk 0:00:06]} 22. axb5 {[%clk 0:01:42]}  axb5 {[%clk 0:00:07]} 23. Qc7 {[%clk 0:01:34]}  Qc5 {[%clk 0:00:07]} 24. Qd8+ {[%clk 0:01:30]}  Qf8 {[%clk 0:00:06]} 25. Qg5 {[%clk 0:01:27]}  Bb7 {[%clk 0:00:02]} 26. Bxb7 {[%clk 0:01:16]}  Rxb7 {[%clk 0:00:03]} 27. Qxh5 {[%clk 0:01:17]}  Nc5 {[%clk 0:00:03]} 28. e6 {[%clk 0:01:15]}  fxe6 {[%clk 0:00:02]} 29. Nxe6 {[%clk 0:01:14]}  Nxe6 {[%clk 0:00:03]} 30. Rxe6 {[%clk 0:01:15]}  Re7 {[%clk 0:00:02]} 31. Rxe7 {[%clk 0:01:03]}  Qxe7 {[%clk 0:00:03]} 32. Qd5+ {[%clk 0:01:03]}  Kh8 {[%clk 0:00:03]} 33. Qxb5 {[%clk 0:01:03]}  Qe1+ {[%clk 0:00:02]} 34. Kg2 {[%clk 0:00:54]}  Qe4+ {[%clk 0:00:02]} 35. Kf1 {[%clk 0:00:54]}  Qb1+ {[%clk 0:00:02]} 36. Kg2 {[%clk 0:00:55]}  Qe4+ {[%clk 0:00:02]} 37. f3 {[%clk 0:00:53]}  Qc2+ {[%clk 0:00:02]} 38. Kh3 {[%clk 0:00:54]}  Qh7+ {[%clk 0:00:02]} 39. Kg4 {[%clk 0:00:53]}  Qg6+ {[%clk 0:00:03]} 40. Qg5 {[%clk 0:00:51]}  Qe6+ {[%clk 0:00:03]} 41. Qf5 {[%clk 0:00:52]}  Qc4+ {[%clk 0:00:03]} 42. Kh5 {[%clk 0:00:45]}  Qe2 {[%clk 0:00:01]} 43. h4 {[%clk 0:00:43]}  b3 {[%clk 0:00:02]} 44. Kg6 {[%clk 0:00:28]}  Qe8+ {[%clk 0:00:02]} 45. Qf7 {[%clk 0:00:26]}  Qc6+ {[%clk 0:00:02]} 46. Kg5 {[%clk 0:00:27]}  Qc5+ {[%clk 0:00:02]} 47. Kg4 {[%clk 0:00:27]}  Qc8+ {[%clk 0:00:03]} 48. Kg5 {[%clk 0:00:24]}  Qc1+ {[%clk 0:00:03]} 49. Qf4 {[%clk 0:00:20]}  Qxb2 {[%clk 0:00:03]} 50. Qf8+ {[%clk 0:00:19]}  Kh7 {[%clk 0:00:03]} 51. Qf5+ {[%clk 0:00:20]}  Kg8 {[%clk 0:00:03]} 52. Qe6+ {[%clk 0:00:20]}  Kh8 {[%clk 0:00:03]} 53. Qe8+ {[%clk 0:00:20]}  Kh7 {[%clk 0:00:04]} 54. Qh5+ {[%clk 0:00:20]}  Kg8 {[%clk 0:00:04]} 55. Qe8+ {[%clk 0:00:18]}  Kh7 {[%clk 0:00:04]} 56. Qe4+ {[%clk 0:00:18]}  Kh8 {[%clk 0:00:03]} 57. Qa8+ {[%clk 0:00:13]}  Kh7 {[%clk 0:00:03]} 58. Qe4+ {[%clk 0:00:12]}  g6 {[%clk 0:00:03]} 59. Qe8 {[%clk 0:00:13]}  Qd2+ {[%clk 0:00:03]} 60. f4 {[%clk 0:00:13]}  Qd5+ {[%clk 0:00:02]} 61. Kf6 {[%clk 0:00:12]}  Qf5+ {[%clk 0:00:03]} 62. Ke7 {[%clk 0:00:13]}  Qe4+ {[%clk 0:00:03]} 63. Kf7 {[%clk 0:00:13]}  Qxe8+ {[%clk 0:00:04]} 64. Kxe8 {[%clk 0:00:14]}  b2 {[%clk 0:00:05]} 65. h5 {[%clk 0:00:14]}  b1=Q {[%clk 0:00:06]} 66. hxg6+ {[%clk 0:00:15]}  Qxg6+ {[%clk 0:00:07]} 67. Ke7 {[%clk 0:00:15]}  Qxg3 {[%clk 0:00:08]} 68. f5 {[%clk 0:00:16]}  Qe5+ {[%clk 0:00:08]} 69. Kf7 {[%clk 0:00:16]}  Qxf5+ {[%clk 0:00:09]} 70. Ke7 {[%clk 0:00:17]}  Kg7 {[%clk 0:00:09]} 0-1

[Event "November 21 Early 2023"]
[Site "https://www.chess.com"]
[Date "2023.11.21"]
[Round "11"]
[White "Iskusnyh, Sergei"]
[Black "Jamal-Jamal-Jamal"]
[Result "0-1"]
[Board "79"]
[TimeControl "180+1"]
[WhiteFideId "4120027"]
[WhiteElo "2455"]
[BlackElo "2468"]
[WhiteTeam "RUS"]
[WhiteClock "0:00:00"]
[BlackClock "0:00:09"]

1. d4 {[%clk 0:03:00]}  e6 {[%clk 0:02:59]} 2. c4 {[%clk 0:03:00]}  Nf6 {[%clk 0:02:58]} 3. g3 {[%clk 0:02:59]}  d5 {[%clk 0:02:58]} 4. Bg2 {[%clk 0:02:59]}  Be7 {[%clk 0:02:58]} 5. Nf3 {[%clk 0:02:58]}  O-O {[%clk 0:02:58]} 6. Qc2 {[%clk 0:02:58]}  dxc4 {[%clk 0:02:56]} 7. Qxc4 {[%clk 0:02:58]}  a6 {[%clk 0:02:56]} 8. Qc2 {[%clk 0:02:54]}  b5 {[%clk 0:02:44]} 9. Ne5 {[%clk 0:02:40]}  Nd5 {[%clk 0:02:44]} 10. O-O {[%clk 0:02:37]}  Bb7 {[%clk 0:02:43]} 11. Bd2 {[%clk 0:02:28]}  Bf6 {[%clk 0:02:05]} 12. Rd1 {[%clk 0:02:03]}  Nd7 {[%clk 0:02:04]} 13. Ba5 {[%clk 0:01:59]}  Bxe5 {[%clk 0:01:45]} 14. dxe5 {[%clk 0:01:57]}  Rc8 {[%clk 0:01:44]} 15. Nc3 {[%clk 0:01:41]}  Nxe5 {[%clk 0:01:19]} 16. e4 {[%clk 0:01:34]}  Nc4 {[%clk 0:01:09]} 17. b4 {[%clk 0:01:21]}  Nde3 {[%clk 0:00:38]} 18. fxe3 {[%clk 0:01:19]}  Nxe3 {[%clk 0:00:39]} 19. Qe2 {[%clk 0:01:04]}  Nxd1 {[%clk 0:00:38]} 20. Rxd1 {[%clk 0:01:05]}  Qe7 {[%clk 0:00:38]} 21. Qe3 {[%clk 0:01:01]}  Rfd8 {[%clk 0:00:36]} 22. Rf1 {[%clk 0:01:00]}  Rd7 {[%clk 0:00:31]} 23. e5 {[%clk 0:00:52]}  Bxg2 {[%clk 0:00:30]} 24. Kxg2 {[%clk 0:00:53]}  Rcd8 {[%clk 0:00:30]} 25. Ne4 {[%clk 0:00:53]}  Rd3 {[%clk 0:00:28]} 26. Qf4 {[%clk 0:00:50]}  h6 {[%clk 0:00:21]} 27. Rf2 {[%clk 0:00:43]}  R8d4 {[%clk 0:00:17]} 28. Re2 {[%clk 0:00:34]}  Qd7 {[%clk 0:00:17]} 29. Kh3 {[%clk 0:00:28]}  Qd5 {[%clk 0:00:18]} 30. Rf2 {[%clk 0:00:27]}  Qxe4 {[%clk 0:00:18]} 31. Qxf7+ {[%clk 0:00:27]}  Kh7 {[%clk 0:00:17]} 32. Rf4 {[%clk 0:00:24]}  Qg6 {[%clk 0:00:14]} 33. Qxc7 {[%clk 0:00:20]}  Rxf4 {[%clk 0:00:13]} 34. Qc2 {[%clk 0:00:14]}  Qg4+ {[%clk 0:00:12]} 35. Kg2 {[%clk 0:00:13]}  Qf3+ {[%clk 0:00:12]} 36. Kh3 {[%clk 0:00:14]}  Qg4+ {[%clk 0:00:09]} 37. Kg2 {[%clk 0:00:14]}  Rd4 {[%clk 0:00:08]} 38. Bb6 {[%clk 0:00:13]}  Qf3+ {[%clk 0:00:08]} 39. Kh3 {[%clk 0:00:13]}  Qf5+ {[%clk 0:00:09]} 40. Kg2 {[%clk 0:00:00]}  Rd2+ {[%clk 0:00:09]} 0-1

[Event "November 21 Early 2023"]
[Site "https://www.chess.com"]
[Date "2023.11.21"]
[Round "11"]
[White "Khater, Sherif"]
[Black "Ramla2020"]
[Result "1/2-1/2"]
[Board "80"]
[TimeControl "180+1"]
[WhiteFideId "2034280"]
[WhiteElo "2542"]
[BlackElo "2465"]
[WhiteTeam "USA"]
[WhiteClock "0:00:13"]
[BlackClock "0:00:15"]

1. d4 {[%clk 0:03:00]}  Nf6 {[%clk 0:02:59]} 2. Bg5 {[%clk 0:03:00]}  d5 {[%clk 0:02:56]} 3. Bxf6 {[%clk 0:03:00]}  exf6 {[%clk 0:02:55]} 4. e3 {[%clk 0:03:01]}  Bd6 {[%clk 0:02:54]} 5. c4 {[%clk 0:03:02]}  c6 {[%clk 0:02:53]} 6. cxd5 {[%clk 0:03:01]}  cxd5 {[%clk 0:02:52]} 7. Nc3 {[%clk 0:03:01]}  Be6 {[%clk 0:02:44]} 8. g3 {[%clk 0:03:01]}  O-O {[%clk 0:02:42]} 9. Bg2 {[%clk 0:03:00]}  Bb4 {[%clk 0:02:42]} 10. Ne2 {[%clk 0:03:00]}  Nd7 {[%clk 0:02:37]} 11. O-O {[%clk 0:02:58]}  Nb6 {[%clk 0:02:37]} 12. a3 {[%clk 0:02:58]}  Bxc3 {[%clk 0:02:28]} 13. Nxc3 {[%clk 0:02:57]}  Nc4 {[%clk 0:02:25]} 14. Qe2 {[%clk 0:02:52]}  Rc8 {[%clk 0:02:23]} 15. Rac1 {[%clk 0:02:50]}  a6 {[%clk 0:02:22]} 16. Rc2 {[%clk 0:02:50]}  b5 {[%clk 0:02:18]} 17. Rfc1 {[%clk 0:02:50]}  Qd6 {[%clk 0:02:13]} 18. g4 {[%clk 0:02:37]}  g6 {[%clk 0:02:11]} 19. h3 {[%clk 0:02:36]}  Rc7 {[%clk 0:02:00]} 20. Na2 {[%clk 0:02:10]}  Rfc8 {[%clk 0:01:57]} 21. Nb4 {[%clk 0:02:05]}  f5 {[%clk 0:01:44]} 22. Nd3 {[%clk 0:01:51]}  fxg4 {[%clk 0:01:39]} 23. hxg4 {[%clk 0:01:51]}  a5 {[%clk 0:01:32]} 24. Nc5 {[%clk 0:01:40]}  b4 {[%clk 0:01:15]} 25. axb4 {[%clk 0:01:38]}  axb4 {[%clk 0:01:16]} 26. b3 {[%clk 0:01:31]}  Nb6 {[%clk 0:01:11]} 27. Qb5 {[%clk 0:01:25]}  Nd7 {[%clk 0:01:11]} 28. Qxb4 {[%clk 0:01:24]}  Rb8 {[%clk 0:01:06]} 29. Qd2 {[%clk 0:01:03]}  Bxg4 {[%clk 0:00:51]} 30. Nxd7 {[%clk 0:00:57]}  Rxc2 {[%clk 0:00:49]} 31. Qxc2 {[%clk 0:00:53]}  Bxd7 {[%clk 0:00:47]} 32. Qc7 {[%clk 0:00:46]}  Qxc7 {[%clk 0:00:41]} 33. Rxc7 {[%clk 0:00:45]}  Be6 {[%clk 0:00:42]} 34. Rc5 {[%clk 0:00:42]}  Rxb3 {[%clk 0:00:39]} 35. Bxd5 {[%clk 0:00:42]}  Bxd5 {[%clk 0:00:39]} 36. Rxd5 {[%clk 0:00:43]}  h5 {[%clk 0:00:39]} 37. Kg2 {[%clk 0:00:43]}  Kf8 {[%clk 0:00:39]} 38. Rc5 {[%clk 0:00:41]}  Ke7 {[%clk 0:00:38]} 39. Kg3 {[%clk 0:00:41]}  Rb1 {[%clk 0:00:37]} 40. Rc7+ {[%clk 0:00:37]}  Kf6 {[%clk 0:00:36]} 41. e4 {[%clk 0:00:35]}  Rg1+ {[%clk 0:00:34]} 42. Kh2 {[%clk 0:00:28]}  Rd1 {[%clk 0:00:33]} 43. d5 {[%clk 0:00:27]}  g5 {[%clk 0:00:29]} 44. Kg2 {[%clk 0:00:25]}  g4 {[%clk 0:00:26]} 45. Kg3 {[%clk 0:00:24]}  Rd3+ {[%clk 0:00:26]} 46. Kg2 {[%clk 0:00:20]}  h4 {[%clk 0:00:26]} 47. Rc6+ {[%clk 0:00:20]}  Kg5 {[%clk 0:00:24]} 48. Rc7 {[%clk 0:00:19]}  Kf6 {[%clk 0:00:22]} 49. Rc6+ {[%clk 0:00:19]}  Kg5 {[%clk 0:00:22]} 50. Rc7 {[%clk 0:00:20]}  f6 {[%clk 0:00:21]} 51. Rg7+ {[%clk 0:00:17]}  Kf4 {[%clk 0:00:21]} 52. Rf7 {[%clk 0:00:17]}  Ke5 {[%clk 0:00:20]} 53. Re7+ {[%clk 0:00:16]}  Kf4 {[%clk 0:00:17]} 54. Re6 {[%clk 0:00:15]}  h3+ {[%clk 0:00:18]} 55. Kh2 {[%clk 0:00:15]}  f5 {[%clk 0:00:15]} 56. exf5 {[%clk 0:00:14]}  Kxf5 {[%clk 0:00:16]} 57. Rd6 {[%clk 0:00:09]}  Ke5 {[%clk 0:00:15]} 58. Rg6 {[%clk 0:00:08]}  Kf4 {[%clk 0:00:15]} 59. Rf6+ {[%clk 0:00:08]}  Kg5 {[%clk 0:00:15]} 60. Rd6 {[%clk 0:00:08]}  Rd2 {[%clk 0:00:16]} 61. Kg3 {[%clk 0:00:07]}  Rd3+ {[%clk 0:00:16]} 62. Kh2 {[%clk 0:00:08]}  Kf4 {[%clk 0:00:16]} 63. Rf6+ {[%clk 0:00:08]}  Ke4 {[%clk 0:00:17]} 64. Rg6 {[%clk 0:00:08]}  Kf5 {[%clk 0:00:16]} 65. Rd6 {[%clk 0:00:07]}  Rf3 {[%clk 0:00:16]} 66. Kg1 {[%clk 0:00:07]}  Rd3 {[%clk 0:00:16]} 67. Rd8 {[%clk 0:00:07]}  Ke5 {[%clk 0:00:15]} 68. Rg8 {[%clk 0:00:06]}  Rd4 {[%clk 0:00:15]} 69. Rg5+ {[%clk 0:00:05]}  Kf4 {[%clk 0:00:15]} 70. Rh5 {[%clk 0:00:05]}  Kf3 {[%clk 0:00:15]} 71. Rf5+ {[%clk 0:00:05]}  Ke4 {[%clk 0:00:15]} 72. Rh5 {[%clk 0:00:05]}  Kf4 {[%clk 0:00:16]} 73. Kh2 {[%clk 0:00:05]}  Rd2 {[%clk 0:00:16]} 74. Kg1 {[%clk 0:00:05]}  Kf3 {[%clk 0:00:15]} 75. Rf5+ {[%clk 0:00:06]}  Ke4 {[%clk 0:00:16]} 76. Rg5 {[%clk 0:00:06]}  Kf4 {[%clk 0:00:16]} 77. Rh5 {[%clk 0:00:05]}  g3 {[%clk 0:00:15]} 78. Rxh3 {[%clk 0:00:04]}  gxf2+ {[%clk 0:00:14]} 79. Kf1 {[%clk 0:00:05]}  Rxd5 {[%clk 0:00:14]} 80. Kg2 {[%clk 0:00:05]}  Rd2 {[%clk 0:00:14]} 81. Rf3+ {[%clk 0:00:06]}  Ke4 {[%clk 0:00:14]} 82. Rxf2 {[%clk 0:00:06]}  Rd3 {[%clk 0:00:14]} 83. Re2+ {[%clk 0:00:07]}  Kf4 {[%clk 0:00:13]} 84. Rf2+ {[%clk 0:00:08]}  Kg4 {[%clk 0:00:14]} 85. Re2 {[%clk 0:00:08]}  Rg3+ {[%clk 0:00:14]} 86. Kf2 {[%clk 0:00:08]}  Rc3 {[%clk 0:00:15]} 87. Ke1 {[%clk 0:00:09]}  Kf4 {[%clk 0:00:14]} 88. Kd2 {[%clk 0:00:10]}  Ra3 {[%clk 0:00:14]} 89. Re8 {[%clk 0:00:10]}  Kf5 {[%clk 0:00:14]} 90. Re3 {[%clk 0:00:09]}  Ra2+ {[%clk 0:00:14]} 91. Kd3 {[%clk 0:00:09]}  Ra1 {[%clk 0:00:15]} 92. Re2 {[%clk 0:00:09]}  Rd1+ {[%clk 0:00:15]} 93. Kc2 {[%clk 0:00:09]}  Rh1 {[%clk 0:00:16]} 94. Rd2 {[%clk 0:00:10]}  Ke4 {[%clk 0:00:16]} 95. Re2+ {[%clk 0:00:11]}  Kd4 {[%clk 0:00:17]} 96. Rd2+ {[%clk 0:00:12]}  Kc4 {[%clk 0:00:17]} 97. Re2 {[%clk 0:00:12]}  Rf1 {[%clk 0:00:17]} 98. Kd2 {[%clk 0:00:13]}  Ra1 {[%clk 0:00:17]} 99. Ke3 {[%clk 0:00:13]}  Ra3+ {[%clk 0:00:17]} 100. Ke4 {[%clk 0:00:13]}  Ra7 {[%clk 0:00:16]} 101. Rc2+ {[%clk 0:00:14]}  Kb3 {[%clk 0:00:16]} 102. Rc6 {[%clk 0:00:14]}  Re7+ {[%clk 0:00:17]} 103. Kd4 {[%clk 0:00:14]}  Rd7+ {[%clk 0:00:17]} 104. Kc5 {[%clk 0:00:14]}  Rd3 {[%clk 0:00:16]} 105. Kb6 {[%clk 0:00:13]}  Rc3 {[%clk 0:00:15]} 1/2-1/2

[Event "November 21 Early 2023"]
[Site "https://www.chess.com"]
[Date "2023.11.21"]
[Round "11"]
[White "Gutkin, Ilya"]
[Black "Graca, Robert"]
[Result "1-0"]
[Board "82"]
[TimeControl "180+1"]
[WhiteFideId "16203470"]
[BlackFideId "644943"]
[WhiteElo "2248"]
[BlackElo "2204"]
[WhiteTeam "GER"]
[BlackTeam "FRA"]
[WhiteClock "0:00:12"]
[BlackClock "0:00:09"]

1. e4 {[%clk 0:03:00]}  c5 {[%clk 0:02:56]} 2. Nf3 {[%clk 0:03:01]}  d6 {[%clk 0:02:56]} 3. Bb5+ {[%clk 0:03:00]}  Bd7 {[%clk 0:02:56]} 4. a4 {[%clk 0:03:01]}  Nf6 {[%clk 0:02:54]} 5. O-O {[%clk 0:03:01]}  Nxe4 {[%clk 0:02:44]} 6. Re1 {[%clk 0:03:00]}  Nf6 {[%clk 0:02:44]} 7. d4 {[%clk 0:03:01]}  cxd4 {[%clk 0:02:42]} 8. Nxd4 {[%clk 0:03:02]}  a6 {[%clk 0:02:36]} 9. Bc4 {[%clk 0:02:50]}  e6 {[%clk 0:02:29]} 10. Qf3 {[%clk 0:02:34]}  Nc6 {[%clk 0:02:26]} 11. Nf5 {[%clk 0:02:24]}  Ne5 {[%clk 0:02:13]} 12. Rxe5 {[%clk 0:02:12]}  dxe5 {[%clk 0:02:13]} 13. Ne3 {[%clk 0:02:06]}  Bc6 {[%clk 0:02:10]} 14. Qg3 {[%clk 0:02:06]}  Qc7 {[%clk 0:01:51]} 15. Nc3 {[%clk 0:02:04]}  Rc8 {[%clk 0:01:28]} 16. b3 {[%clk 0:01:56]}  e4 {[%clk 0:01:25]} 17. Qh4 {[%clk 0:01:43]}  Be7 {[%clk 0:01:21]} 18. Bb2 {[%clk 0:01:42]}  h6 {[%clk 0:01:06]} 19. Ng4 {[%clk 0:01:23]}  Nxg4 {[%clk 0:00:55]} 20. Qxg4 {[%clk 0:01:24]}  Bf6 {[%clk 0:00:55]} 21. Bxe6 {[%clk 0:01:18]}  fxe6 {[%clk 0:00:51]} 22. Qxe6+ {[%clk 0:01:18]}  Kf8 {[%clk 0:00:49]} 23. Ba3+ {[%clk 0:01:18]}  Be7 {[%clk 0:00:47]} 24. Bxe7+ {[%clk 0:01:15]}  Qxe7 {[%clk 0:00:35]} 25. Qxc8+ {[%clk 0:01:15]}  Qe8 {[%clk 0:00:30]} 26. Qxe8+ {[%clk 0:01:15]}  Kxe8 {[%clk 0:00:30]} 27. Nxe4 {[%clk 0:01:13]}  Kf7 {[%clk 0:00:25]} 28. Nd6+ {[%clk 0:00:56]}  Kf6 {[%clk 0:00:24]} 29. Nc4 {[%clk 0:00:56]}  Re8 {[%clk 0:00:19]} 30. Kf1 {[%clk 0:00:56]}  g5 {[%clk 0:00:16]} 31. f3 {[%clk 0:00:55]}  h5 {[%clk 0:00:14]} 32. Re1 {[%clk 0:00:54]}  Rd8 {[%clk 0:00:14]} 33. h3 {[%clk 0:00:51]}  Be8 {[%clk 0:00:11]} 34. Ke2 {[%clk 0:00:43]}  Bg6 {[%clk 0:00:11]} 35. Rd1 {[%clk 0:00:35]}  Rc8 {[%clk 0:00:10]} 36. Rd2 {[%clk 0:00:33]}  b5 {[%clk 0:00:09]} 37. axb5 {[%clk 0:00:32]}  axb5 {[%clk 0:00:10]} 38. Nd6 {[%clk 0:00:25]}  Rxc2 {[%clk 0:00:08]} 39. Rxc2 {[%clk 0:00:25]}  Bxc2 {[%clk 0:00:09]} 40. b4 {[%clk 0:00:25]}  Ke5 {[%clk 0:00:04]} 41. Nxb5 {[%clk 0:00:23]}  Kd5 {[%clk 0:00:04]} 42. Nc3+ {[%clk 0:00:20]}  Kc4 {[%clk 0:00:03]} 43. Kd2 {[%clk 0:00:14]}  Bd3 {[%clk 0:00:01]} 44. b5 {[%clk 0:00:14]}  Bf1 {[%clk 0:00:01]} 45. Ne4 {[%clk 0:00:11]}  Bxg2 {[%clk 0:00:01]} 46. Nxg5 {[%clk 0:00:11]}  Kxb5 {[%clk 0:00:02]} 47. Ke2 {[%clk 0:00:11]}  Kc5 {[%clk 0:00:02]} 48. Kf2 {[%clk 0:00:11]}  Bxh3 {[%clk 0:00:02]} 49. Nxh3 {[%clk 0:00:11]}  Kd5 {[%clk 0:00:03]} 50. Kg3 {[%clk 0:00:11]}  Ke5 {[%clk 0:00:03]} 51. Kh4 {[%clk 0:00:12]}  Kf5 {[%clk 0:00:04]} 52. Kxh5 {[%clk 0:00:12]}  Kf6 {[%clk 0:00:04]} 53. Kg4 {[%clk 0:00:12]}  Kf7 {[%clk 0:00:05]} 54. Kf5 {[%clk 0:00:12]}  Kg7 {[%clk 0:00:06]} 55. Ke6 {[%clk 0:00:13]}  Kf8 {[%clk 0:00:06]} 56. Kf6 {[%clk 0:00:13]}  Ke8 {[%clk 0:00:07]} 57. f4 {[%clk 0:00:10]}  Kf8 {[%clk 0:00:08]} 58. f5 {[%clk 0:00:11]}  Kg8 {[%clk 0:00:08]} 59. Ke7 {[%clk 0:00:11]}  Kh8 {[%clk 0:00:09]} 60. f6 {[%clk 0:00:12]}  Kg8 {[%clk 0:00:10]} 61. f7+ {[%clk 0:00:12]}  Kh8 {[%clk 0:00:10]} 62. f8=Q+ {[%clk 0:00:13]}  Kh7 {[%clk 0:00:11]} 63. Qf5+ {[%clk 0:00:11]}  Kh8 {[%clk 0:00:09]} 64. Qg5 {[%clk 0:00:12]} 1-0

[Event "November 21 Early 2023"]
[Site "https://www.chess.com"]
[Date "2023.11.21"]
[Round "11"]
[White "vishwa_vijeta"]
[Black "Kozelov, Roman"]
[Result "1/2-1/2"]
[Board "86"]
[TimeControl "180+1"]
[BlackFideId "14133377"]
[WhiteElo "2519"]
[BlackElo "2149"]
[BlackTeam "UKR"]
[WhiteClock "0:01:33"]
[BlackClock "0:02:06"]

1. e4 {[%clk 0:03:00]}  e6 {[%clk 0:02:59]} 2. d4 {[%clk 0:03:00]}  d5 {[%clk 0:03:00]} 3. Bd3 {[%clk 0:03:00]}  dxe4 {[%clk 0:02:59]} 4. Bxe4 {[%clk 0:03:01]}  Nf6 {[%clk 0:02:59]} 5. Bf3 {[%clk 0:03:02]}  Bd6 {[%clk 0:02:59]} 6. Ne2 {[%clk 0:03:02]}  O-O {[%clk 0:02:59]} 7. h3 {[%clk 0:03:03]}  c6 {[%clk 0:02:57]} 8. O-O {[%clk 0:03:03]}  Nbd7 {[%clk 0:02:57]} 9. Bf4 {[%clk 0:02:59]}  e5 {[%clk 0:02:56]} 10. dxe5 {[%clk 0:02:57]}  Bxe5 {[%clk 0:02:57]} 11. Nbc3 {[%clk 0:02:49]}  Qc7 {[%clk 0:02:56]} 12. Qd2 {[%clk 0:02:47]}  Nc5 {[%clk 0:02:42]} 13. Rfe1 {[%clk 0:02:40]}  Bxf4 {[%clk 0:02:31]} 14. Nxf4 {[%clk 0:02:31]}  Bf5 {[%clk 0:02:26]} 15. Qd4 {[%clk 0:02:14]}  Ne6 {[%clk 0:02:20]} 16. Nxe6 {[%clk 0:02:12]}  Bxe6 {[%clk 0:02:21]} 17. Qh4 {[%clk 0:02:08]}  Rad8 {[%clk 0:02:19]} 18. Ne4 {[%clk 0:02:07]}  Nxe4 {[%clk 0:02:18]} 19. Bxe4 {[%clk 0:02:08]}  g6 {[%clk 0:02:18]} 20. Bd3 {[%clk 0:02:06]}  Qb6 {[%clk 0:02:07]} 21. Qf6 {[%clk 0:01:33]}  Qd4 {[%clk 0:02:06]} 1/2-1/2